bitfinex/quotes_ETHUSD_20250504
["timestamp","ask_amount","ask_price","bid_price","bid_amount"]
[1746372730078,0.15965041,1834.6,1834.5,4.511]
[1746372730389,2.93808415,1834.7,1834.5,9.96207658]
[1746372730687,0.15965041,1834.6,1834.5,9.96207658]
[1746372730889,2.93808415,1834.7,1834.5,9.96207658]
[1746372731103,0.15965041,1834.6,1834.5,9.96207658]
[1746372731278,6.9202982,1834.9,1834.5,9.96207658]
[1746372731600,0.15966622,1834.8,1834.5,9.96207658]
[1746372731906,6.9202982,1834.9,1834.5,9.96207658]
[1746372732204,5.60987301,1834.8,1834.5,4.511]
[1746372733307,5.60987531,1834.8,1834.5,4.511]
[1746372733469,6.86289266,1834.8,1834.5,4.511]
[1746372733807,7.62109266,1834.8,1834.5,4.511]
[1746372734971,7.62109266,1834.8,1834.4,4.51]
[1746372734972,5.45129821,1834.5,1834.4,4.51]
[1746372735301,5.61094071,1834.5,1834.4,4.51]
[1746372737272,8.98422486,1834.5,1834.4,4.51]
[1746372737474,5.4516563,1834.4,1834.0,6.9207]
[1746372737715,5.4521936,1834.2,1834.1,4.51]
[1746372737903,5.4521936,1834.2,1833.9,19.667]
[1746372738089,5.60980096,1834.1,1834.0,4.51]
[1746372739883,8.98311253,1834.1,1834.0,4.51]
[1746372741004,4.31462078,1834.1,1833.7,4.51]
[1746372741203,5.45315737,1833.8,1833.7,4.51]
[1746372741573,5.60835182,1833.8,1833.7,4.51]
[1746372741967,6.39215182,1833.8,1833.7,4.51]
[1746372742910,7.79557551,1833.8,1833.7,4.51]
[1746372743215,7.79572686,1833.8,1833.5,4.511]
[1746372743380,5.45375218,1833.6,1833.5,4.511]
[1746372743912,0.15362299,1833.6,1833.5,4.511]
[1746372744117,5.45361699,1833.7,1833.5,4.511]
[1746372744276,0.15359717,1833.6,1833.5,4.511]
[1746372744609,5.45361699,1833.7,1833.5,4.511]
[1746372744815,0.15359717,1833.6,1833.5,4.511]
[1746372745479,5.45361699,1833.7,1833.5,4.511]
[1746372745801,0.15359717,1833.6,1833.5,4.511]
[1746372746114,5.45361699,1833.7,1833.5,4.511]
[1746372746315,0.15359717,1833.6,1833.5,4.511]
[1746372746516,5.45361699,1833.7,1833.5,4.511]
[1746372746716,0.15359717,1833.6,1833.5,4.511]
[1746372746894,5.45361699,1833.7,1833.5,4.511]
[1746372747212,0.15359717,1833.6,1833.5,4.511]
[1746372747517,5.45361699,1833.7,1833.5,4.511]
[1746372747703,0.15359717,1833.6,1833.5,4.511]
[1746372747904,5.45361699,1833.7,1833.5,4.511]
[1746372748215,5.60734935,1833.6,1833.5,4.511]
[1746372748816,8.60734935,1833.6,1833.5,4.511]
[1746372749033,9.40224935,1833.6,1833.5,4.511]
[1746372754642,9.90995334,1833.6,1833.5,4.511]
[1746372758460,9.40224935,1833.6,1833.5,4.511]
[1746372758659,11.24172165,1833.6,1833.5,4.511]
[1746372763365,5.45457067,1833.4,1833.2,5.2778]
[1746372763567,5.45464462,1833.3,1833.2,4.511]
[1746372763770,5.45464462,1833.3,1832.9,5.45561405]
[1746372763771,6.1091821,1833.3,1833.1,4.511]
[1746372764256,0.50893146,1833.2,1833.1,4.511]
[1746372764575,5.45544584,1833.1,1832.8,0.786]
[1746372764734,5.45544584,1833.1,1832.9,4.511]
[1746372764931,0.65253836,1833.0,1832.9,4.511]
[1746372767996,6.10818675,1833.0,1832.7,19.679]
[1746372768142,6.06678472,1832.9,1832.7,24.19]
[1746372768491,0.65107921,1832.8,1832.7,24.19]
[1746372768784,6.1072119,1832.8,1832.7,24.19]
[1746372769173,6.1072119,1832.8,1832.7,19.679]
[1746372769372,0.65107921,1832.8,1832.7,19.679]
[1746372769547,0.65107921,1832.8,1832.6,4.511]
[1746372770159,0.50893146,1832.7,1832.6,4.511]
[1746372770376,0.64921301,1832.7,1832.6,4.511]
[1746372772563,0.64921301,1832.7,1832.6,9.96772814]
[1746372772762,0.64921301,1832.7,1832.6,4.511]
[1746372779094,0.64921301,1832.7,1832.6,9.96772814]
[1746372780400,0.64921301,1832.7,1832.6,4.511]
[1746372780993,0.64921301,1832.7,1832.6,9.96772814]
[1746372782872,0.64921301,1832.7,1832.6,4.511]
[1746372786612,0.64921301,1832.7,1832.6,5.3147]
[1746372787890,0.64921301,1832.7,1832.6,4.511]
[1746372789179,0.64921301,1832.7,1832.6,5.3147]
[1746372794125,0.64921301,1832.7,1832.6,0.8037]
[1746372797412,0.64921301,1832.7,1832.5,4.511]
[1746372797714,0.50893146,1832.6,1832.5,4.511]
[1746372797915,0.50893146,1832.6,1832.5,9.96802592]
[1746372798114,0.6443039,1832.6,1832.5,9.96802592]
[1746372799916,0.6443039,1832.6,1832.5,14.55337396]
[1746372800111,0.6443039,1832.6,1832.5,14.4988073]
[1746372801419,0.6443039,1832.6,1832.5,20.6088073]
[1746372802479,0.50893146,1832.6,1832.5,20.6088073]
[1746372802684,3.68594783,1833.1,1832.9,5.45576052]
[1746372802883,3.68594783,1833.1,1833.0,5.45553737]
[1746372803115,3.68594783,1833.1,1833.0,6.25463737]
[1746372803522,3.68594783,1833.1,1833.0,0.7991]
[1746372804036,3.68594783,1833.1,1832.9,10.7658057]
[1746372806235,9.54749772,1833.3,1832.9,10.7658057]
[1746372806438,0.95474977,1833.2,1832.9,10.7658057]
[1746372807141,6.40981107,1833.2,1832.9,5.3101]
[1746372807327,5.45553737,1833.0,1832.9,4.511]
[1746372807641,5.45553737,1833.0,1832.8,4.511]
[1746372807840,6.62669729,1833.0,1832.8,4.511]
[1746372810039,1.17115992,1833.0,1832.8,4.511]
[1746372810241,6.25622306,1833.1,1832.8,4.511]
[1746372811512,5.45565015,1833.0,1832.8,4.511]
[1746372811713,6.25620505,1833.1,1832.8,4.511]
[1746372812528,5.45564002,1833.0,1832.8,4.511]
[1746372812930,12.07122722,1833.0,1832.8,4.511]
[1746372813131,13.90396998,1833.0,1832.8,4.511]
[1746372813949,0.7997,1832.9,1832.8,4.511]
[1746372814254,6.25553501,1832.9,1832.8,4.511]
[1746372816855,6.39296199,1832.9,1832.8,4.511]
[1746372819961,13.00898845,1832.9,1832.8,4.511]
[1746372820256,14.54807603,1832.9,1832.8,4.511]
[1746372821661,14.54807603,1832.9,1832.6,4.511]
[1746372822357,5.4562663,1832.8,1832.6,4.511]
[1746372822735,0.13741113,1832.7,1832.6,4.511]
[1746372823060,14.410838,1832.9,1832.6,4.511]
[1746372823362,0.13741113,1832.7,1832.6,4.511]
[1746372823556,14.410838,1832.9,1832.6,4.511]
[1746372824094,0.13741905,1832.8,1832.6,4.511]
[1746372824568,14.410838,1832.9,1832.6,4.511]
[1746372825057,0.13741905,1832.8,1832.6,4.511]
[1746372825436,12.87175042,1832.9,1832.6,4.511]
[1746372825639,0.13741113,1832.7,1832.6,4.511]
[1746372825841,12.87175042,1832.9,1832.6,4.511]
[1746372826053,0.13741113,1832.7,1832.6,4.511]
[1746372826358,12.87175042,1832.9,1832.6,4.511]
[1746372826662,3.68594783,1832.8,1832.6,4.511]
[1746372826827,9.27956484,1832.8,1832.6,4.511]
[1746372830155,3.82336688,1832.8,1832.6,4.511]
[1746372830568,0.13741905,1832.8,1832.6,4.511]
[1746372830865,9.94165106,1832.9,1832.6,4.511]
[1746372831168,0.13693188,1832.7,1832.6,4.511]
[1746372831376,9.94165106,1832.9,1832.5,9.96600525]
[1746372831676,0.1369398,1832.8,1832.5,9.96600525]
[1746372831861,9.94165106,1832.9,1832.5,9.96600525]
[1746372832033,0.13693188,1832.7,1832.5,9.96600525]
[1746372832234,9.94165106,1832.9,1832.5,9.96600525]
[1746372832436,0.13692395,1832.6,1832.5,9.96600525]
[1746372832653,9.94165106,1832.9,1832.5,9.96600525]
[1746372832875,0.13692395,1832.6,1832.5,9.96600525]
[1746372833077,9.94165106,1832.9,1832.5,9.96600525]
[1746372833281,0.13692395,1832.6,1832.5,9.96600525]
[1746372833580,9.94165106,1832.9,1832.5,9.96600525]
[1746372833791,0.13692395,1832.6,1832.5,10.76100525]
[1746372833937,3.68594783,1832.9,1832.7,5.45633618]
[1746372834355,0.1369398,1832.8,1832.7,5.45633618]
[1746372834587,0.1369398,1832.8,1832.6,6.25159148]
[1746372834782,3.68594783,1832.9,1832.6,6.25159148]
[1746372835253,0.1369398,1832.8,1832.6,6.25159148]
[1746372835464,3.68594783,1832.9,1832.6,6.25159148]
[1746372835666,0.13693188,1832.7,1832.6,6.25159148]
[1746372835888,3.68594783,1832.9,1832.6,6.25159148]
[1746372836187,0.13693188,1832.7,1832.6,10.76059148]
[1746372836356,3.68594783,1832.9,1832.6,10.76059148]
[1746372836552,0.13693188,1832.7,1832.6,10.76059148]
[1746372836784,3.68594783,1832.9,1832.6,10.76059148]
[1746372837290,0.1369398,1832.8,1832.6,10.76059148]
[1746372837490,3.68594783,1832.9,1832.6,10.76059148]
[1746372837690,0.13693188,1832.7,1832.6,10.76059148]
[1746372837889,3.68594783,1832.9,1832.6,10.76059148]
[1746372838389,0.1369398,1832.8,1832.6,10.76059148]
[1746372838688,3.68594783,1832.9,1832.6,10.76059148]
[1746372838891,0.13723146,1832.7,1832.6,10.76059148]
[1746372839194,3.68594783,1832.9,1832.6,10.76059148]
[1746372839398,0.13723146,1832.7,1832.6,10.76059148]
[1746372839563,3.68594783,1832.9,1832.6,10.76059148]
[1746372839767,0.13723146,1832.7,1832.6,10.76059148]
[1746372839967,3.68594783,1832.9,1832.6,10.76059148]
[1746372840466,0.13723939,1832.8,1832.6,10.76059148]
[1746372840664,3.68594783,1832.9,1832.6,10.76059148]
[1746372840899,0.13723146,1832.7,1832.6,10.76059148]
[1746372841103,3.68594783,1832.9,1832.6,10.76059148]
[1746372841302,0.13723146,1832.7,1832.6,10.76059148]
[1746372841503,9.14178698,1832.9,1832.6,10.76059148]
[1746372841803,0.13723146,1832.7,1832.6,5.304]
[1746372842003,9.14178698,1832.9,1832.6,5.304]
[1746372842301,0.13723146,1832.7,1832.6,5.304]
[1746372842502,9.14178698,1832.9,1832.6,5.304]
[1746372842700,0.13723146,1832.7,1832.6,5.304]
[1746372842927,5.45637019,1832.8,1832.6,4.509]
[1746372843074,0.13723146,1832.7,1832.6,4.509]
[1746372844110,10.68057551,1832.9,1832.6,4.509]
[1746372844399,0.13723146,1832.7,1832.6,4.509]
[1746372844599,10.68057551,1832.9,1832.6,4.509]
[1746372844793,0.13723146,1832.7,1832.6,4.509]
[1746372844996,0.40001968,1832.8,1832.6,4.509]
[1746372845201,0.13723146,1832.7,1832.6,4.509]
[1746372845496,16.13665336,1832.9,1832.6,4.509]
[1746372845696,0.13723146,1832.7,1832.5,4.509]
[1746372846007,5.45616983,1832.8,1832.5,4.509]
[1746372846302,7.33176045,1832.8,1832.5,4.509]
[1746372846605,0.13723146,1832.7,1832.5,4.509]
[1746372853228,5.59372737,1832.7,1832.5,4.509]
[1746372853410,0.13723146,1832.7,1832.5,4.509]
[1746372854945,5.59369037,1832.7,1832.5,4.509]
[1746372855243,1.73222486,1832.7,1832.5,4.509]
[1746372857245,0.13723146,1832.7,1832.5,10.74766444]
[1746372857912,0.13723146,1832.7,1832.5,5.2909]
[1746372858113,0.13723146,1832.7,1832.5,4.509]
[1746372860051,3.82317929,1832.7,1832.5,4.509]
[1746372860723,4.87498173,1832.7,1832.5,4.509]
[1746372863716,10.331415,1832.7,1832.5,4.509]
[1746372865231,4.87498173,1832.7,1832.5,4.509]
[1746372874467,4.87498173,1832.7,1832.4,9.96530596]
[1746372874645,4.87498173,1832.7,1832.4,4.508]
[1746372875027,10.33144599,1832.7,1832.4,4.508]
[1746372877460,5.45676813,1832.6,1832.4,4.508]
[1746372877764,0.13517096,1832.5,1832.4,4.508]
[1746372877974,10.19421453,1832.7,1832.4,4.508]
[1746372878280,0.13517096,1832.5,1832.4,4.508]
[1746372878423,10.19421453,1832.7,1832.4,4.508]
[1746372878629,0.13517889,1832.6,1832.4,4.508]
[1746372879069,5.45676936,1832.6,1832.4,4.508]
[1746372879290,0.13517096,1832.5,1832.4,4.508]
[1746372880955,5.45702592,1832.5,1832.4,4.508]
[1746372881287,6.68357767,1832.5,1832.4,4.508]
[1746372886376,5.45732372,1832.4,1832.2,4.506]
[1746372886779,0.1343762,1832.3,1832.2,4.506]
[1746372886998,5.45732372,1832.4,1832.2,4.506]
[1746372887313,5.45732372,1832.4,1832.1,0.905354]
[1746372887314,5.45791944,1832.2,1832.1,0.098854]
[1746372887666,5.59120907,1832.2,1832.1,0.098854]
[1746372888390,11.505571,1832.2,1832.1,0.098854]
[1746372889881,12.55242216,1832.2,1832.1,0.098854]
[1746372890364,6.25661125,1831.8,1831.7,4.506]
[1746372890558,7.42816434,1831.8,1831.7,4.506]
[1746372890797,7.42816434,1831.8,1831.5,4.44282786]
[1746372891207,0.1324708,1831.7,1831.5,4.44282786]
[1746372893275,0.1324708,1831.7,1831.5,0.7959]
[1746372893475,0.55026792,1831.7,1831.5,0.7959]
[1746372895211,0.1324708,1831.7,1831.5,6.25570472]
[1746372895419,5.45884998,1831.9,1831.5,6.25570472]
[1746372895603,0.12748769,1831.6,1831.5,6.25570472]
[1746372895813,5.45884998,1831.9,1831.5,6.31027467]
[1746372896011,0.12748769,1831.6,1831.5,6.31027467]
[1746372896214,5.45884998,1831.9,1831.5,6.31027467]
[1746372896404,0.12748769,1831.6,1831.5,6.31027467]
[1746372896601,5.45884998,1831.9,1831.5,6.25567901]
[1746372896803,0.12748769,1831.6,1831.5,6.25567901]
[1746372897002,1.17148759,1831.9,1831.5,11.77004649]
[1746372897234,1.17148759,1831.9,1831.6,6.24667268]
[1746372897523,6.66487785,1832.1,1831.8,0.787]
[1746372897686,3.66487785,1832.1,1831.8,6.24590093]
[1746372898085,3.66487785,1832.1,1831.8,10.75290093]
[1746372898313,3.66487785,1832.1,1831.9,6.24578565]
[1746372900562,3.66487785,1832.1,1831.9,0.787]
[1746372900925,9.12322401,1832.1,1831.9,0.787]
[1746372901125,5.16480507,1832.1,1831.9,0.787]
[1746372901359,10.6231558,1832.1,1831.9,0.787]
[1746372901830,5.16480507,1832.1,1831.9,0.787]
[1746372902033,1.49992722,1832.1,1831.9,0.787]
[1746372902351,5.87622339,1832.2,1831.9,0.787]
[1746372902746,0.41812532,1832.2,1831.9,6.24578989]
[1746372902961,8.45776063,1832.3,1831.9,6.24578989]
[1746372903662,8.45776063,1832.3,1831.9,0.787]
[1746372904928,8.45776063,1832.3,1831.9,6.24579675]
[1746372905127,10.32504204,1832.3,1831.9,6.24579675]
[1746372906780,0.12765562,1832.2,1831.9,6.24579675]
[1746372907578,0.12765562,1832.2,1831.9,0.84158592]
[1746372907774,0.12765562,1832.2,1832.1,5.45821734]
[1746372907978,0.12765562,1832.2,1832.1,6.23591734]
[1746372908165,3.66487785,1832.5,1832.2,5.45789568]
[1746372908369,4.87775506,1832.5,1832.2,5.45789568]
[1746372908670,4.87775506,1832.5,1832.2,9.96489568]
[1746372908974,10.33479841,1832.5,1832.2,4.507]
[1746372910170,5.45734365,1832.4,1832.2,4.507]
[1746372910341,5.45762156,1832.3,1832.2,4.507]
[1746372910541,12.30771722,1832.3,1832.0,4.507]
[1746372910742,6.84981686,1832.3,1832.0,4.507]
[1746372912470,6.85000332,1832.3,1832.0,4.507]
[1746372912774,5.45792228,1832.2,1832.0,4.507]
[1746372914076,6.84994628,1832.3,1832.0,4.507]
[1746372916784,1.3921953,1832.3,1832.0,9.96529533]
[1746372917083,5.45744955,1832.4,1832.0,9.96529533]
[1746372921281,5.45744955,1832.4,1832.0,4.507]
[1746372921688,5.45766849,1832.3,1832.0,4.507]
[1746372921984,5.58599149,1832.3,1832.0,4.507]
[1746372922352,6.69033559,1832.3,1832.0,4.507]
[1746372923292,5.45821734,1832.1,1832.0,4.507]
[1746372923790,5.58653281,1832.1,1832.0,4.507]
[1746372924602,5.45854045,1832.0,1831.7,4.506]
[1746372925074,0.1282996,1831.9,1831.7,4.506]
[1746372925277,0.1282996,1831.9,1831.7,9.96538252]
[1746372925633,6.00834239,1832.1,1831.7,9.96538252]
[1746372925820,0.12829167,1831.8,1831.7,9.96538252]
[1746372925978,6.90162231,1832.1,1831.7,9.96538252]
[1746372926177,0.12829167,1831.8,1831.7,9.96538252]
[1746372926379,6.90162231,1832.1,1831.7,9.96538252]
[1746372926575,0.12829167,1831.8,1831.7,9.96523574]
[1746372926826,1.44327992,1832.1,1831.7,15.42447148]
[1746372926979,1.44327992,1832.1,1831.8,0.7543]
[1746372927323,6.90152721,1832.1,1831.8,0.7543]
[1746372927487,0.69015272,1832.0,1831.8,0.7543]
[1746372927686,1.44327992,1832.1,1831.8,0.7543]
[1746372928079,6.90154662,1832.1,1831.8,0.7543]
[1746372933435,5.45851528,1832.0,1831.6,4.506]
[1746372933638,5.45881325,1831.9,1831.6,4.506]
[1746372934839,8.43495749,1832.0,1831.6,4.506]
[1746372934840,8.4349927,1832.0,1831.6,4.506]
[1746372935038,6.30235223,1831.9,1831.6,4.506]
[1746372935336,6.30250146,1831.9,1831.6,4.506]
[1746372935504,6.302419,1831.9,1831.6,4.506]
[1746372936339,0.84349927,1831.9,1831.6,4.506]
[1746372936641,0.84349927,1831.9,1831.6,9.96570344]
[1746372936952,0.50777456,1831.8,1831.6,4.506]
[1746372937160,0.92310967,1831.8,1831.6,4.506]
[1746372937522,1.64565368,1831.8,1831.6,4.506]
[1746372939248,7.10479359,1831.8,1831.6,4.506]
[1746372939956,1.64565368,1831.8,1831.6,4.506]
[1746372940130,0.92310967,1831.8,1831.7,0.8261]
[1746372940674,0.92310967,1831.8,1831.6,4.506]
[1746372941036,0.50777456,1831.8,1831.6,9.96556167]
[1746372941242,0.50777456,1831.8,1831.7,0.7957]
[1746372941552,9.12350814,1832.0,1831.7,0.7957]
[1746372941757,0.50777456,1831.9,1831.7,0.7957]
[1746372944238,5.96665281,1831.9,1831.7,0.7957]
[1746372948193,0.50777456,1831.9,1831.7,0.7957]
[1746372949491,5.96659417,1831.9,1831.7,0.7957]
[1746372949694,0.50777456,1831.9,1831.7,0.7957]
[1746372949907,0.50777456,1831.9,1831.7,6.25500977]
[1746372951088,0.50777456,1831.9,1831.8,5.45911125]
[1746372951875,0.50777456,1831.9,1831.7,6.25499591]
[1746372952380,0.50777456,1831.9,1831.7,6.30952368]
[1746372952593,0.50777456,1831.9,1831.7,6.30952073]
[1746372952767,0.50777456,1831.9,1831.8,5.45911125]
[1746372952964,3.66487785,1832.1,1831.8,6.22431125]
[1746372953178,0.50699506,1832.0,1831.8,6.22431125]
[1746372953998,0.50699506,1832.0,1831.8,0.7652]
[1746372954303,1.47001238,1832.0,1831.8,0.7652]
[1746372957270,1.47001238,1832.0,1831.8,6.224306]
[1746372957470,0.50699506,1832.0,1831.8,6.224306]
[1746372959808,0.50699506,1832.0,1831.8,0.7652]
[1746372960512,6.74346121,1832.0,1831.6,16.85946352]
[1746372961210,6.74346121,1832.0,1831.6,16.85936977]
[1746372961708,1.28489506,1832.0,1831.6,16.85936977]
[1746372961906,6.74352471,1832.0,1831.6,16.85939095]
[1746372962103,8.37187494,1832.0,1831.6,16.07549095]
[1746372963615,2.91324529,1832.0,1831.7,5.45938526]
[1746372964119,2.91324529,1832.0,1831.8,5.45910602]
[1746372964318,1.28489506,1832.0,1831.8,5.45910602]
[1746372964681,1.28489506,1832.0,1831.7,5.45926892]
[1746372967710,1.28489506,1832.0,1831.7,10.91854169]
[1746372968007,1.28489506,1832.0,1831.7,5.45926892]
[1746372970697,6.74342569,1832.0,1831.6,10.74950496]
[1746372971012,6.74342569,1832.0,1831.6,16.20890904]
[1746372971214,6.74342569,1832.0,1831.7,5.4594011]
[1746372971508,7.88092659,1832.0,1831.6,10.7494131]
[1746372971822,6.24303856,1831.8,1831.6,4.506]
[1746372972183,0.49386823,1831.7,1831.6,4.506]
[1746372977216,5.45898054,1831.9,1831.6,4.506]
[1746372977651,0.49266899,1831.8,1831.6,4.506]
[1746372977951,5.95181529,1831.8,1831.6,4.506]
[1746372978151,7.09289487,1831.8,1831.6,4.506]
[1746372979057,7.87679487,1831.8,1831.6,4.506]
[1746372980962,5.45940929,1831.7,1831.6,4.506]
[1746372981344,5.9514187,1831.7,1831.6,4.506]
[1746372983064,0.49200941,1831.7,1831.6,4.506]
[1746372983266,1.27963868,1831.7,1831.6,4.506]
[1746372983570,6.73904797,1831.7,1831.3,10.71760934]
[1746372984583,6.73904797,1831.7,1831.3,5.2572]
[1746372985072,1.27963868,1831.7,1831.1,6.11]
[1746372985376,6.21912073,1831.6,1831.2,9.96587372]
[1746372985724,6.21912073,1831.6,1831.2,4.505]
[1746372985939,0.49200941,1831.5,1831.2,4.505]
[1746372986140,0.49200941,1831.5,1831.2,9.96568131]
[1746372986687,0.49200941,1831.5,1831.2,10.02028404]
[1746372987391,0.49200941,1831.5,1831.2,9.96568131]
[1746372988444,0.49200941,1831.5,1831.2,9.96567961]
[1746372988940,5.45972039,1831.6,1831.2,9.96567961]
[1746372989147,0.49200941,1831.4,1831.2,9.96567961]
[1746372989345,5.45972039,1831.6,1831.2,9.96567961]
[1746372989641,5.87398592,1831.6,1831.2,9.96567961]
[1746372989843,0.49200941,1831.5,1831.3,5.46046906]
[1746372990048,0.49200941,1831.5,1831.4,0.8241]
[1746372990563,9.12430712,1831.7,1831.4,0.8241]
[1746372990763,0.49200941,1831.5,1831.4,0.8241]
[1746372991281,9.12430712,1831.7,1831.4,0.8241]
[1746372991479,0.49200941,1831.5,1831.4,0.8241]
[1746372991650,10.63766582,1831.7,1831.4,0.8241]
[1746372991975,0.49200941,1831.5,1831.4,6.28437171]
[1746372992446,9.12428949,1831.7,1831.4,0.8241]
[1746372992648,0.49200941,1831.5,1831.4,0.8241]
[1746372992858,9.12428949,1831.7,1831.4,0.8241]
[1746372993059,0.49200941,1831.5,1831.4,0.8241]
[1746372993384,9.12428949,1831.7,1831.4,0.8241]
[1746372993674,3.66487785,1831.7,1831.4,0.8241]
[1746372993876,0.49200941,1831.6,1831.4,0.8241]
[1746372994369,5.45946376,1831.7,1831.4,0.8241]
[1746372994570,0.49128974,1831.5,1831.4,0.8241]
[1746372994771,5.45946376,1831.7,1831.4,0.8241]
[1746372994973,0.49128974,1831.5,1831.4,0.8241]
[1746372995170,5.45946376,1831.7,1831.4,0.8241]
[1746372995347,0.49128974,1831.5,1831.4,0.8241]
[1746372995683,0.49128974,1831.5,1831.4,6.28437066]
[1746372995883,10.59488475,1831.8,1831.4,6.28437066]
[1746372996080,0.49128974,1831.5,1831.4,6.28437066]
[1746372996284,10.59488475,1831.8,1831.4,6.28437066]
[1746372996491,0.49128974,1831.5,1831.4,6.28437066]
[1746372996783,10.59488475,1831.8,1831.4,6.28437066]
[1746372997002,0.49128974,1831.5,1831.4,6.28437066]
[1746372997504,10.59488475,1831.8,1831.4,6.28437066]
[1746372997505,10.59488524,1831.8,1831.4,6.28437066]
[1746372997706,0.49128974,1831.5,1831.4,6.28437066]
[1746372997906,10.59488524,1831.8,1831.4,6.28437066]
[1746372998105,0.49128974,1831.5,1831.4,6.28437066]
[1746372998691,10.59488524,1831.8,1831.4,6.28437066]
[1746372998898,0.49128974,1831.5,1831.4,6.28437066]
[1746372999109,10.59488524,1831.8,1831.4,6.28437066]
[1746372999305,0.49128974,1831.5,1831.4,6.28437066]
[1746372999467,10.59488524,1831.8,1831.4,6.28437066]
[1746372999699,0.49128974,1831.5,1831.4,6.28437066]
[1746372999905,3.66487785,1831.8,1831.6,5.4595764]
[1746373000347,3.66487785,1831.8,1831.7,5.45940929]
[1746373000523,3.66487785,1831.8,1831.7,6.20970929]
[1746373004454,6.59505151,1832.0,1831.7,6.20970929]
[1746373006511,6.59505151,1832.0,1831.8,5.45906826]
[1746373006725,6.59505151,1832.0,1831.7,6.20960738]
[1746373006936,6.59505151,1832.0,1831.7,11.66883156]
[1746373007247,6.59505151,1832.0,1831.7,6.20952418]
[1746373007843,6.59505151,1832.0,1831.7,6.20949505]
[1746373008242,6.59505151,1832.0,1831.7,6.20948885]
[1746373009442,6.59505151,1832.0,1831.8,5.45910553]
[1746373009946,6.59505151,1832.0,1831.7,6.20948885]
[1746373010146,6.59505151,1832.0,1831.8,5.45910725]
[1746373010455,6.59505151,1832.0,1831.9,6.29081325]
[1746373011220,3.66487785,1832.1,1832.0,5.45851528]
[1746373011618,4.1167283,1832.1,1832.0,5.45851528]
[1746373014853,0.45185045,1832.1,1832.0,5.45851528]
[1746373015249,3.66487785,1832.3,1832.0,5.45851528]
[1746373015553,0.45185045,1832.1,1832.0,5.45851528]
[1746373015720,4.06779482,1832.3,1832.0,5.45851528]
[1746373016221,0.45185045,1832.2,1832.0,5.45851528]
[1746373020164,0.45185045,1832.2,1831.9,0.832]
[1746373020463,0.45185045,1832.2,1831.9,6.29068605]
[1746373020771,0.45185045,1832.2,1832.0,5.45849505]
[1746373021256,0.45185045,1832.2,1832.0,5.45840198]
[1746373022456,0.45185045,1832.2,1831.9,6.29066012]
[1746373022636,0.45185045,1832.2,1831.9,4.503]
[1746373022637,5.45838266,1832.1,1831.9,4.503]
[1746373022818,6.23708266,1832.1,1831.9,4.503]
[1746373023156,0.45413731,1832.0,1831.9,4.503]
[1746373026044,5.91265259,1832.0,1831.9,4.503]
[1746373026239,7.12761525,1832.0,1831.9,4.503]
[1746373030368,7.12791026,1832.0,1831.6,4.503]
[1746373030575,5.45881764,1831.9,1831.6,4.503]
[1746373031074,0.45413731,1831.8,1831.6,4.503]
[1746373032282,5.91330547,1831.8,1831.5,5.3245]
[1746373032575,0.45413731,1831.8,1831.5,10.78448273]
[1746373032761,0.87094531,1831.8,1831.5,10.78448273]
[1746373033084,0.45413731,1831.8,1831.5,13.85895489]
[1746373033266,0.45413731,1831.8,1831.6,5.45969251]
[1746373033468,0.45413731,1831.8,1831.5,13.8587588]
[1746373033469,0.45413731,1831.8,1831.5,13.85878656]
[1746373033642,5.45885251,1831.9,1831.5,13.85878656]
[1746373033976,0.45215115,1831.8,1831.6,5.45969972]
[1746373034174,0.45215115,1831.8,1831.5,13.85881141]
[1746373034339,5.45884495,1831.9,1831.5,13.85881141]
[1746373034545,0.45215115,1831.7,1831.6,6.84558849]
[1746373034740,6.27910544,1832.0,1831.6,5.45970735]
[1746373034973,0.45215115,1831.7,1831.6,5.45970735]
[1746373035165,6.27910544,1832.0,1831.6,5.45970735]
[1746373035355,0.45215115,1831.7,1831.6,5.45970735]
[1746373035555,5.45882578,1831.9,1831.5,13.85880678]
[1746373035760,0.45215115,1831.7,1831.5,13.85875551]
[1746373036072,5.45882578,1831.9,1831.6,1.38587555]
[1746373036285,6.2789161,1832.0,1831.6,5.45968633]
[1746373036457,11.73770352,1832.0,1831.6,5.45968633]
[1746373037480,6.2789161,1832.0,1831.6,5.45969232]
[1746373037866,11.73767479,1832.0,1831.6,5.45969232]
[1746373038191,5.45882028,1831.9,1831.5,13.85878213]
[1746373038370,5.45882028,1831.9,1831.6,6.84558431]
[1746373038574,5.45882028,1831.9,1831.6,5.4597061]
[1746373039258,6.27910554,1832.0,1831.5,13.85874303]
[1746373039584,6.27910554,1832.0,1831.6,5.45969991]
[1746373040183,11.73788949,1832.0,1831.6,5.45969991]
[1746373040787,6.27910554,1832.0,1831.6,5.45969991]
[1746373040991,5.45870554,1832.0,1831.7,0.7561]
[1746373041781,0.45215115,1831.9,1831.7,0.7561]
[1746373059930,0.45215115,1831.9,1831.7,6.21546799]
[1746373060124,0.45215115,1831.9,1831.7,0.7561]
[1746373060528,5.91097982,1831.9,1831.6,5.325]
[1746373060839,0.45215115,1831.9,1831.6,5.325]
[1746373061137,0.45215115,1831.9,1831.6,10.78466049]
[1746373062735,5.91100571,1831.9,1831.6,5.325]
[1746373063036,0.45215115,1831.9,1831.6,5.325]
[1746373063237,0.45215115,1831.9,1831.6,10.78467807]
[1746373063706,0.45215115,1831.9,1831.6,12.2852114]
[1746373070456,4.117029,1831.9,1831.6,12.2852114]
[1746373074091,4.117029,1831.9,1831.8,6.21831125]
[1746373074736,4.117029,1831.9,1831.8,0.7592]
[1746373075159,4.117029,1831.9,1831.6,21.29143333]
[1746373075470,4.117029,1831.9,1831.6,25.25047985]
[1746373076462,4.117029,1831.9,1831.6,28.32150344]
[1746373077270,4.117029,1831.9,1831.6,34.43150344]
[1746373078489,0.45215115,1831.9,1831.6,34.43150344]
[1746373079795,0.45215115,1831.9,1831.6,34.43141429]
[1746373080778,0.45215115,1831.9,1831.6,39.89091211]
[1746373081079,0.45215115,1831.9,1831.7,3.98909121]
[1746373081473,0.45215115,1831.9,1831.6,16.860371]
[1746373082075,4.117029,1831.9,1831.6,16.860371]
[1746373083369,4.117029,1831.9,1831.7,4.501]
[1746373086983,9.57599634,1831.9,1831.7,4.501]
[1746373087512,15.03510085,1831.9,1831.7,4.501]
[1746373087687,7.75432133,1831.8,1831.7,4.501]